fUSD/lending_fUSD_20250226
["ID","MTS","AMOUNT","RATE_DAILY","PERIOD"]
[354566380,1740576651479,-654.41,0.00039998,14]
[354566381,1740576651488,-500.0,0.00039998,14]
[354566382,1740576651498,-500.0,0.00039998,14]
[354566383,1740576651507,-500.0,0.00039998,14]
[354566384,1740576651516,-500.0,0.00039998,14]
[354566385,1740576651525,-500.0,0.00039998,14]
[354566386,1740576651534,-348.49,0.00039998,14]
[354566387,1740576651543,-691.73,0.00039998,14]
[354566388,1740576651552,-500.0,0.00039998,14]
[354566389,1740576651561,-500.0,0.00039998,14]
[354566390,1740576651570,-500.0,0.00039998,14]
[354566391,1740576651579,-878.38,0.00039998,14]
[354566392,1740576651588,-760.34,0.00039998,14]
[354566393,1740576651597,-500.0,0.00039998,14]
[354566394,1740576651606,-670.9,0.00039998,14]
[354566395,1740576651615,-570.19,0.00039998,14]
[354566396,1740576651624,-1133.36,0.00039998,14]
[354566397,1740576651633,-500.0,0.00039998,14]
[354566398,1740576651642,-645.99,0.00039998,14]
[354566399,1740576651651,-576.6,0.00039998,14]
[354566400,1740576651660,-500.0,0.00039998,14]
[354566401,1740576651668,-522.91,0.00039998,14]
[354566402,1740576651677,-592.51,0.00039998,14]
[354566403,1740576651687,-500.0,0.00039998,14]
[354566404,1740576651697,-500.0,0.00039998,14]
[354566405,1740576651706,-548.46,0.00039998,14]
[354566406,1740576651717,-500.0,0.00039998,14]
[354566407,1740576651727,-599.96,0.00039998,14]
[354566408,1740576651736,-509.79,0.00039998,14]
[354566409,1740576651746,-500.0,0.00039998,14]
[354566410,1740576651755,-974.92,0.00039998,14]
[354566411,1740576651764,-592.89,0.00039998,14]
[354566412,1740576651774,-500.0,0.00039998,14]
[354566413,1740576651783,-634.19,0.00039998,14]
[354566414,1740576651792,-500.0,0.00039998,14]
[354566415,1740576651800,-500.0,0.00039998,14]
[354566416,1740576651809,-592.2,0.00039998,14]
[354566417,1740576651819,-500.0,0.00039998,14]
[354566418,1740576651828,-500.0,0.00039998,14]
[354566419,1740576651838,-505.6,0.00039998,14]
[354566420,1740576651847,-584.8,0.00039998,14]
[354566421,1740576651856,-500.0,0.00039998,14]
[354566422,1740576651865,-500.0,0.00039998,14]
[354566423,1740576651875,-852.82,0.00039998,14]
[354566424,1740576651884,-720.37,0.00039998,14]
[354566425,1740576651894,-500.0,0.00039998,14]
[354566426,1740576651903,-630.69,0.00039998,14]
[354566427,1740576651912,-500.0,0.00039998,14]
[354566428,1740576651921,-500.0,0.00039998,14]
[354566429,1740576651931,-500.0,0.00039998,14]
[354566430,1740576651940,-1127.0,0.00039998,14]
[354566431,1740576651950,-500.0,0.00039998,14]
[354566432,1740576651960,-500.0,0.00039998,14]
[354566433,1740576651969,-828.67,0.00039998,14]
[354566434,1740576651979,-654.38,0.00039998,14]
[354566435,1740576651988,-500.0,0.00039998,14]
[354566436,1740576651997,-500.0,0.00039998,14]
[354566437,1740576652006,-500.0,0.00039998,14]
[354566438,1740576652015,-500.0,0.00039998,14]
[354566439,1740576652024,-500.0,0.00039998,14]
[354566440,1740576652034,-1010.0,0.00039998,14]
[354566441,1740576652042,-852.12,0.00039998,14]
[354566442,1740576652052,-650.03,0.00039998,14]
[354566443,1740576652061,-500.0,0.00039998,14]
[354566444,1740576652070,-500.0,0.00039998,14]
[354566445,1740576652079,-500.0,0.00039998,14]
[354566446,1740576652088,-500.0,0.00039998,14]
[354566447,1740576652097,-746.28,0.00039998,14]
[354566448,1740576652106,-500.0,0.00039998,14]
[354566449,1740576652115,-1149.7,0.00039998,14]
[354566450,1740576652124,-1257.7,0.00039998,14]
[354566451,1740576652133,-504.44839264,0.00039998,14]
[354566452,1740576652142,-500.0,0.00039998,14]
[354566453,1740576652151,-500.0,0.00039998,14]
[354566454,1740576652161,-1342.51,0.00039998,14]
[354566455,1740576652170,-500.0,0.00039998,14]
[354566456,1740576652179,-500.0,0.00039998,14]
[354566457,1740576652188,-500.0,0.00039998,14]
[354566458,1740576652198,-1091.3,0.00039998,14]
[354566459,1740576652208,-1131.82,0.00039998,14]
[354566460,1740576652218,-500.0,0.00039998,14]
[354566461,1740576652227,-737.89,0.00039998,14]
[354566462,1740576652237,-500.0,0.00039998,14]
[354566463,1740576652246,-1036.76,0.00039998,14]
[354566464,1740576652255,-500.0,0.00039998,14]
[354566465,1740576652264,-785.71,0.00039998,14]
[354566466,1740576652273,-500.0,0.00039998,14]
[354566467,1740576652282,-893.7,0.00039998,14]
[354566468,1740576652291,-500.0,0.00039998,14]
[354566469,1740576652300,-500.0,0.00039998,14]
[354566470,1740576652309,-500.0,0.00039998,14]
[354566471,1740576652318,-1429.29,0.00039998,14]
[354566472,1740576652328,-578.71,0.00039998,14]
[354566473,1740576652337,-1407.87,0.00039998,14]
[354566474,1740576652347,-500.0,0.00039998,14]
[354566475,1740576652361,-1248.91,0.00039998,14]
[354566476,1740576652373,-573.45,0.00039998,14]
[354566477,1740576652382,-2552.67,0.00039998,14]
[354566478,1740576652395,-702.9,0.00039998,14]
[354566479,1740576652406,-1381.62,0.00039998,14]
[354566480,1740576652415,-500.0,0.00039998,14]
[354566481,1740576652425,-500.0,0.00039998,14]
[354566482,1740576652436,-560.3,0.00039998,14]
[354566483,1740576652446,-1602.95,0.00039998,14]
[354566484,1740576652455,-774.31,0.00039998,14]
[354566485,1740576652464,-805.65,0.00039998,14]
[354566486,1740576652474,-500.0,0.00039998,14]
[354566487,1740576652483,-500.0,0.00039998,14]
[354566488,1740576652492,-602.42,0.00039998,14]
[354566489,1740576652502,-500.0,0.00039998,14]
[354566490,1740576652511,-2847.1,0.00039998,14]
[354566491,1740576652520,-500.0,0.00039998,14]
[354566492,1740576652530,-764.26,0.00039998,14]
[354566493,1740576652540,-500.0,0.00039998,14]
[354566494,1740576652549,-1730.38,0.00039998,14]
[354566495,1740576652559,-500.0,0.00039998,14]
[354566496,1740576652568,-500.0,0.00039998,14]
[354566497,1740576652580,-1260.95,0.00039998,14]
[354566498,1740576652589,-655.49,0.00039998,14]
[354566499,1740576652599,-910.55,0.00039998,14]
[354566500,1740576652608,-500.0,0.00039998,14]
[354566501,1740576652618,-3544.25,0.00039998,14]
[354566502,1740576652627,-1328.01,0.00039998,14]
[354566503,1740576652636,-1047.85,0.00039998,14]
[354566504,1740576652646,-513.47989501,0.00039998,14]
[354566505,1740576652656,-3479.26,0.00039998,14]
[354566506,1740576652665,-2635.01,0.00039998,14]
[354566507,1740576652674,-991.32,0.00039998,14]
[354566508,1740576652684,-852.12,0.00039998,14]
[354566509,1740576652693,-1872.72,0.00039998,14]
[354566510,1740576652702,-2472.0,0.00039998,14]
[354566511,1740576652711,-500.0,0.00039998,14]
[354566512,1740576652721,-743.17695,0.00039998,14]
[354566513,1740576652731,-581.61,0.00039998,14]
[354566514,1740576652740,-574.93,0.00039998,14]
[354566515,1740576652749,-4352.36,0.00039998,14]
[354566516,1740576652759,-1955.31,0.00039998,14]
[354566517,1740576652768,-964.72,0.00039998,14]
[354566518,1740576652778,-500.0,0.00039998,14]
[354566519,1740576652787,-632.7,0.00039998,14]
[354566520,1740576652796,-13873.2,0.00039998,14]
[354566521,1740576652805,-1713.626842,0.00039998,14]
[354566522,1740576652815,-531.93,0.00039998,14]
[354566523,1740576652824,-2026.05,0.00039998,14]
[354566524,1740576652834,-632.95,0.00039998,14]
[354566525,1740576652843,-500.0,0.00039998,14]
[354566526,1740576652852,-952.05,0.00039998,14]
[354566527,1740576652861,-3615.9,0.00039998,14]
[354566528,1740576652870,-500.0,0.00039998,14]
[354566529,1740576652879,-500.0,0.00039998,14]
[354566530,1740576652888,-7441.97,0.00039998,14]
[354566531,1740576652897,-500.0,0.00039998,14]
[354566532,1740576652907,-508.44812438,0.00039998,14]
[354566533,1740576652916,-1361.16,0.00039998,14]
[354566534,1740576652925,-507.00001725,0.00039998,14]
[354566535,1740576652934,-3537.7,0.00039998,14]
[354566536,1740576652944,-500.0,0.00039998,14]
[354566537,1740576652953,-3227.85,0.00039998,14]
[354566538,1740576652963,-3393.4,0.00039998,14]
[354566539,1740576652972,-500.0,0.00039998,14]
[354566540,1740576652981,-500.0,0.00039998,14]
[354566541,1740576652990,-527.21442775,0.00039998,14]
[354566542,1740576653001,-11387.44,0.00039998,14]
[354566543,1740576653010,-443.96818186,0.00039998,14]
[354566544,1740576653019,-1250.82,0.00039998,14]
[354566545,1740576653028,-2483.93,0.00039998,14]
[354566546,1740576653038,-500.0,0.00039998,14]
[354566547,1740576653047,-500.0,0.00039998,14]
[354566548,1740576653056,-916.59,0.00039998,14]
[354566549,1740576653065,-6442.59,0.00039998,14]
[354566550,1740576653074,-500.0,0.00039998,14]
[354566551,1740576653083,-1746.95,0.00039998,14]
[354566552,1740576653093,-1383.17,0.00039998,14]
[354566553,1740576653102,-2818.36,0.00039998,14]
[354566554,1740576653112,-500.0,0.00039998,14]
[354566555,1740576653121,-595.5,0.00039998,14]
[354566556,1740576653130,-5322.17,0.00039998,14]
[354566557,1740576653139,-528.99645323,0.00039998,14]
[354566558,1740576653148,-970.15,0.00039998,14]
[354566559,1740576653158,-1019.67,0.00039998,14]
[354566560,1740576653167,-2987.07,0.00039998,14]
[354566561,1740576653176,-500.0,0.00039998,14]
[354566562,1740576653186,-500.0,0.00039998,14]
[354566563,1740576653195,-11356.51,0.00039998,14]
[354566564,1740576653204,-1200.84,0.00039998,14]
[354566565,1740576653215,-579.27,0.00039998,14]
[354566566,1740576653224,-2372.7,0.00039998,14]
[354566567,1740576653235,-500.0,0.00039998,14]
[354566568,1740576653244,-500.0,0.00039998,14]
[354566569,1740576653253,-500.0,0.00039998,14]
[354566570,1740576653263,-500.0,0.00039998,14]
[354566571,1740576653271,-2065.94,0.00039998,14]
[354566572,1740576653280,-500.0,0.00039998,14]
[354566573,1740576653290,-500.0,0.00039998,14]
[354566574,1740576653299,-500.0,0.00039998,14]
[354566575,1740576653308,-4892.82,0.00039998,14]
[354566576,1740576653317,-500.0,0.00039998,14]
[354566577,1740576653327,-500.0,0.00039998,14]
[354566578,1740576653336,-500.0,0.00039998,14]
[354566579,1740576653347,-500.0,0.00039998,14]
[354566580,1740576653357,-546.07564109,0.00039998,14]
[354566581,1740576653368,-4503.6,0.00039998,14]
[354566582,1740576653378,-590.18,0.00039998,14]
[354566583,1740576653387,-556.78,0.00039998,14]
[354566584,1740576653397,-3231.91,0.00039998,14]
[354566585,1740576653406,-500.0,0.00039998,14]
[354566586,1740576653415,-500.0,0.00039998,14]
[354566587,1740576653426,-514.23322089,0.00039998,14]
[354566588,1740576653435,-500.0,0.00039998,14]
[354566589,1740576653444,-3553.83,0.00039998,14]
[354566590,1740576653453,-418.49754807,0.00039998,14]
[354566591,1740576653462,-878.01,0.00039999,14]
[354566592,1740576653471,-500.0,0.00039999,14]
[354566593,1740576653480,-611.03,0.00039999,14]
[354566594,1740576653489,-500.0,0.00039999,14]
[354566595,1740576653498,-1084.58,0.00039999,14]
[354566596,1740576653507,-500.0,0.00039999,14]
[354566597,1740576653516,-828.16,0.00039999,14]
[354566598,1740576653525,-500.0,0.00039999,14]
[354566599,1740576653534,-1679.36,0.00039999,14]
[354566600,1740576653543,-984.17,0.00039999,14]
[354566601,1740576653553,-927.99,0.00039999,14]
[354566602,1740576653563,-1527.43,0.00039999,14]
[354566603,1740576653572,-1258.08,0.00039999,14]
[354566604,1740576653583,-1010.12,0.00039999,14]
[354566605,1740576653592,-932.34,0.00039999,14]
[354566606,1740576653602,-500.0,0.00039999,14]
[354566607,1740576653611,-671.52,0.00039999,14]
[354566608,1740576653620,-902.44,0.00039999,14]
[354566609,1740576653630,-876.65,0.00039999,14]
[354566610,1740576653640,-673.95,0.00039999,14]
[354566611,1740576653649,-500.0,0.00039999,14]
[354566612,1740576653658,-1189.48,0.00039999,14]
[354566613,1740576653668,-604.03,0.00039999,14]
[354566614,1740576653678,-837.03,0.00039999,14]
[354566615,1740576653689,-769.06,0.00039999,14]
[354566616,1740576653698,-1166.51,0.00039999,14]
[354566617,1740576653707,-1540.85,0.00039999,14]
[354566618,1740576653716,-500.0,0.00039999,14]
[354566619,1740576653726,-2292.67,0.00039999,14]
[354566620,1740576653735,-809.73,0.00039999,14]
[354566621,1740576653744,-500.0,0.00039999,14]
[354566622,1740576653752,-2075.5,0.00039999,14]
[354566623,1740576653762,-763.52,0.00039999,14]
[354566624,1740576653771,-1006.7,0.00039999,14]
[354566625,1740576653781,-535.29,0.00039999,14]
[354566626,1740576653791,-615.2,0.00039999,14]
[354566627,1740576653800,-500.0,0.00039999,14]
[354566628,1740576653809,-976.04,0.00039999,14]
[354566629,1740576653818,-500.0,0.00039999,14]
[354566630,1740576653829,-500.0,0.00039999,14]
[354566631,1740576653839,-519.41,0.00039999,14]
[354566632,1740576653849,-989.31,0.00039999,14]
[354566633,1740576653858,-1021.46,0.00039999,14]
[354566634,1740576653867,-1986.36,0.00039999,14]
[354566635,1740576653878,-835.15,0.00039999,14]
[354566636,1740576653887,-973.0,0.00039999,14]
[354566637,1740576653896,-1709.57,0.00039999,14]
[354566638,1740576653905,-1142.86,0.00039999,14]
[354566639,1740576653914,-500.0,0.00039999,14]
[354566640,1740576653923,-1422.77,0.00039999,14]
[354566641,1740576653933,-866.66,0.00039999,14]
[354566642,1740576653942,-500.0,0.00039999,14]
[354566643,1740576653951,-863.3,0.00039999,14]
[354566644,1740576653960,-573.77,0.00039999,14]
[354566645,1740576653970,-1645.33,0.00039999,14]
[354566646,1740576653979,-1158.93,0.00039999,14]
[354566647,1740576653989,-733.24,0.00039999,14]
[354566648,1740576653998,-870.39,0.00039999,14]
[354566649,1740576654008,-1191.37,0.00039999,14]
[354566650,1740576654017,-1269.71,0.00039999,14]
[354566651,1740576654027,-1452.5,0.00039999,14]
[354566652,1740576654036,-731.69,0.00039999,14]
[354566653,1740576654045,-3306.62,0.00039999,14]
[354566654,1740576654055,-521.0,0.00039999,14]
[354566655,1740576654064,-2815.63,0.00039999,14]
[354566656,1740576654074,-1946.72,0.00039999,14]
[354566657,1740576654083,-1877.6,0.00039999,14]
[354566658,1740576654092,-3442.25,0.00039999,14]
[354566659,1740576654102,-500.0,0.00039999,14]
[354566660,1740576654111,-1197.33,0.00039999,14]
[354566661,1740576654121,-1629.22,0.00039999,14]
[354566662,1740576654130,-1107.21,0.00039999,14]
[354566663,1740576654139,-500.0,0.00039999,14]
[354566664,1740576654148,-500.0,0.00039999,14]
[354566665,1740576654158,-862.05,0.00039999,14]
[354566666,1740576654170,-2764.45,0.00039999,14]
[354566667,1740576654293,-500.0,0.00039999,14]
[354566668,1740576654312,-3796.65,0.00039999,14]
[354566669,1740576654322,-2883.07,0.00039999,14]
[354566670,1740576654332,-7859.59,0.00039999,14]
[354566671,1740576654342,-808.31,0.00039999,14]
[354566672,1740576654354,-1497.36,0.00039999,14]
[354566673,1740576654364,-2397.74,0.00039999,14]
[354566674,1740576654375,-9888.03,0.00039999,14]
[354566675,1740576654385,-8595.15,0.00039999,14]
[354566676,1740576654395,-946.33,0.00039999,7]
[354566677,1740576654405,-1953.0,0.00039999,14]
[354566678,1740576654415,-3111.22,0.00039999,14]
[354566679,1740576654424,-2194.26,0.00039999,14]
[354566680,1740576654435,-1983.42,0.00039999,14]
[354566681,1740576654445,-5247.48,0.00039999,14]
[354566682,1740576654456,-2292.55,0.00039999,14]
[354566683,1740576654466,-4077.83,0.00039999,14]
[354566684,1740576654475,-1684.49,0.00039999,14]
[354566685,1740576654485,-3576.04,0.00039999,14]
[354566686,1740576654494,-3502.33,0.00039999,14]
[354566687,1740576654504,-11552.8,0.00039999,14]
[354566688,1740576654513,-3671.11,0.00039999,14]
[354566689,1740576654524,-1050.56,0.00039999,14]
[354566690,1740576654533,-500.0,0.00039999,14]
[354566691,1740576654543,-1112.53,0.00039999,14]
[354566692,1740576654552,-501.17,0.00039999,14]
[354566693,1740576654562,-500.0,0.00039999,14]
[354566694,1740576654572,-3197.52,0.00039999,14]
[354566695,1740576654582,-3403.29,0.00039999,14]
[354566696,1740576654591,-1663.42,0.00039999,14]
[354566697,1740576654602,-680.19,0.00039999,14]
[354566698,1740576654611,-1637.32,0.00039999,14]
[354566699,1740576654624,-1382.08,0.00039999,14]
[354566700,1740576654636,-1050.35,0.00039999,14]
[354566701,1740576654650,-1543.56,0.00039999,14]
[354566702,1740576654665,-3991.15,0.00039999,14]
[354566703,1740576654681,-2996.28,0.00039999,14]
[354566704,1740576654693,-500.0,0.00039999,14]
[354566705,1740576654703,-500.0,0.00039999,14]
[354566706,1740576654712,-500.0,0.00039999,14]
[354566707,1740576654721,-3772.53,0.00039999,14]
[354566708,1740576654730,-1037.8,0.00039999,14]
[354566709,1740576654739,-2362.25,0.00039999,14]
[354566710,1740576654748,-1777.36,0.00039999,14]
[354566711,1740576654757,-1847.5,0.00039999,14]
[354566712,1740576654767,-500.0,0.00039999,14]
[354566713,1740576654776,-984.83,0.00039999,14]
[354566714,1740576654784,-1968.19,0.00039999,14]
[354566715,1740576654792,-2434.95,0.00039999,14]
[354566716,1740576654800,-522.12,0.00039999,14]
[354566717,1740576654808,-1458.5,0.00039999,14]
[354566718,1740576654816,-3895.41,0.00039999,14]
[354566719,1740576654826,-2473.08,0.00039999,14]
[354566720,1740576654834,-2853.85,0.00039999,14]
[354566721,1740576654842,-530.56,0.00039999,14]
[354566722,1740576654850,-1809.12,0.00039999,14]
[354566723,1740576654858,-4538.84,0.00039999,14]
[354566724,1740576654866,-1653.91,0.00039999,14]
[354566725,1740576654875,-2232.67,0.00039999,14]
[354566726,1740576654884,-578.42,0.00039999,14]
[354566727,1740576654894,-1150.41,0.00039999,14]
[354566728,1740576654904,-861.61,0.00039999,14]
[354566729,1740576654913,-1504.31,0.00039999,14]
[354566730,1740576654923,-2256.66,0.00039999,14]
[354566731,1740576654932,-1469.18,0.00039999,14]
[354566732,1740576654943,-913.09,0.00039999,14]
[354566733,1740576654952,-852.63,0.00039999,14]
[354566734,1740576654962,-2523.26,0.00039999,14]
[354566735,1740576654971,-1743.61,0.00039999,14]
[354566736,1740576654983,-1322.75,0.00039999,14]
[354566737,1740576654992,-3298.14,0.00039999,14]
[354566738,1740576655002,-2076.75,0.00039999,14]
[354566739,1740576655011,-1522.56,0.00039999,14]
[354566740,1740576655021,-1632.46,0.00039999,14]
[354566741,1740576655030,-626.34,0.00039999,14]
[354566742,1740576655039,-5279.62,0.00039999,14]
[354566743,1740576655049,-14999.99,0.0004,120]
[354566744,1740576655059,-900.0,0.0004,3]
[354566745,1740576655069,-1321.63,0.0004,7]
[354566746,1740576655080,-2347.72,0.0004,14]
[354566747,1740576655090,-6832.37184705,0.0004,30]
[354566748,1740576655099,-2405.17,0.0004,14]
[354566749,1740576655109,-2844.03,0.0004,2]
[354566750,1740576655118,-3091.06,0.0004,14]
[354566751,1740576655128,-3332.29,0.0004,14]
[354566752,1740576655138,-14365.51,0.0004,14]
[354566753,1740576655147,-3011.58,0.0004,14]
[354566754,1740576655157,-3287.97,0.0004,14]
[354566755,1740576655166,-3528.48,0.0004,14]
[354566756,1740576655176,-1923.88,0.0004,14]
[354566757,1740576655186,-500.0,0.00040005,5]
[354566758,1740576655196,-501.72783223,0.00040005,5]
[354566759,1740576655205,-500.0,0.00040005,5]
[354566760,1740576655215,-150.0,0.00040043,2]
[354566761,1740576655225,-156.54024746,0.00040046,5]
[354566762,1740576655234,-151.909756,0.00040046,5]
[354566763,1740576655244,-150.90723953,0.00040046,5]
[354566764,1740576655253,-363.09264307,0.00040046,5]
[354566765,1740576655268,-6973.92649352,0.00040052,15]
[354566766,1740576655279,-334.63,0.00040083,2]
[354566767,1740576655289,-501.44812467,0.00040086,5]
[354566768,1740576655302,-150.0,0.0004014,2]
[354566769,1740576655311,-150.0,0.00040141,2]
[354566770,1740576655321,-150.0,0.00040172,2]
[354566771,1740576655331,-150.0,0.00040248,2]
[354566772,1740576655342,-300.0,0.00040271,10]
[354566773,1740576655355,-2026.05,0.00040271,14]
[354566774,1740576655365,-300.0,0.00040272,10]
[354566775,1740576655374,-500.0,0.00040272,14]
[354566776,1740576655384,-500.0,0.00040272,14]
[354566777,1740576655395,-693.02,0.00040272,14]
[354566778,1740576655405,-500.0,0.00040272,14]
[354566779,1740576655415,-655.78,0.00040272,14]
[354566780,1740576655425,-823.61,0.00040272,14]
[354566781,1740576655436,-500.0,0.00040272,14]
[354566782,1740576655445,-968.88,0.00040272,14]
[354566783,1740576655455,-530.34,0.00040272,14]
[354566784,1740576655464,-500.0,0.00040272,14]
[354566785,1740576655473,-545.56,0.00040272,14]
[354566786,1740576655483,-500.0,0.00040272,14]
[354566787,1740576655492,-500.0,0.00040272,14]
[354566788,1740576655501,-500.0,0.00040272,14]
[354566789,1740576655510,-907.97,0.00040272,14]
[354566790,1740576655520,-500.0,0.00040272,14]
[354566791,1740576655529,-500.0,0.00040272,14]
[354566792,1740576655538,-500.0,0.00040272,14]
[354566793,1740576655546,-1115.54,0.00040272,14]
[354566794,1740576655555,-500.0,0.00040272,14]
[354566795,1740576655564,-500.0,0.00040272,14]
[354566796,1740576655573,-1481.61,0.00040272,14]
[354566797,1740576655583,-500.0,0.00040272,14]
[354566798,1740576655592,-500.0,0.00040272,14]
[354566799,1740576655601,-500.0,0.00040272,14]
[354566800,1740576655611,-599.44,0.00040272,14]
[354566801,1740576655620,-1063.94,0.00040272,14]
[354566802,1740576655629,-500.0,0.00040272,14]
[354566803,1740576655638,-683.53,0.00040272,14]
[354566804,1740576655647,-927.51,0.00040272,14]
[354566805,1740576655656,-500.0,0.00040272,14]
[354566806,1740576655665,-619.73,0.00040272,14]
[354566807,1740576655674,-698.53,0.00040272,14]
[354566808,1740576655683,-894.91,0.00040272,14]
[354566809,1740576655693,-500.0,0.00040272,14]
[354566810,1740576655702,-615.17,0.00040272,14]
[354566811,1740576655711,-1194.43,0.00040272,14]
[354566812,1740576655720,-500.0,0.00040272,14]
[354566813,1740576655730,-1097.78,0.00040272,14]
[354566814,1740576655739,-500.0,0.00040272,14]
[354566815,1740576655748,-1480.69,0.00040272,14]
[354566816,1740576655757,-500.0,0.00040272,14]
[354566817,1740576655767,-666.19,0.00040272,14]
[354566818,1740576655776,-500.0,0.00040272,14]
[354566819,1740576655786,-653.18,0.00040272,14]
[354566820,1740576655795,-505.88723468,0.00040272,14]
[354566821,1740576655804,-960.88,0.00040272,14]
[354566822,1740576655814,-500.0,0.00040272,14]
[354566823,1740576655823,-730.68,0.00040272,14]
[354566824,1740576655833,-500.0,0.00040272,14]
[354566825,1740576655842,-637.85,0.00040272,14]
[354566826,1740576655852,-699.76,0.00040272,14]
[354566827,1740576655861,-654.41,0.00040272,14]
[354566828,1740576655871,-500.0,0.00040272,14]
[354566829,1740576655880,-500.0,0.00040272,14]
[354566830,1740576655890,-500.0,0.00040272,14]
[354566831,1740576655899,-500.0,0.00040272,14]
[354566832,1740576655908,-611.10826581,0.00040272,14]
[354566833,1740576655918,-500.0,0.00040272,14]
[354566834,1740576655928,-500.0,0.00040272,14]
[354566835,1740576655937,-691.73,0.00040272,14]
[354566836,1740576655947,-1834.38,0.00040272,14]
[354566837,1740576655956,-1594.23,0.00040272,14]
[354566838,1740576655966,-500.0,0.00040272,14]
[354566839,1740576655976,-500.0,0.00040272,14]
[354566840,1740576655987,-878.38,0.00040272,14]
[354566841,1740576655997,-500.0,0.00040272,14]
[354566842,1740576656006,-760.34,0.00040272,14]
[354566843,1740576656015,-500.0,0.00040272,14]
[354566844,1740576656025,-500.0,0.00040272,14]
[354566845,1740576656034,-1187.93,0.00040272,14]
[354566846,1740576656044,-670.9,0.00040272,14]
[354566847,1740576656053,-570.19,0.00040272,14]
[354566848,1740576656062,-1133.36,0.00040272,14]
[354566849,1740576656072,-513.34,0.00040272,14]
[354566850,1740576656081,-500.0,0.00040272,14]
[354566851,1740576656091,-645.99,0.00040272,14]
[354566852,1740576656101,-2194.66,0.00040272,14]
[354566853,1740576656111,-576.6,0.00040272,14]
[354566854,1740576656120,-500.0,0.00040272,14]
[354566855,1740576656130,-522.91,0.00040272,14]
[354566856,1740576656139,-592.51,0.00040272,14]
[354566857,1740576656149,-808.53,0.00040272,14]
[354566858,1740576656159,-500.0,0.00040272,14]
[354566859,1740576656168,-872.51,0.00040272,14]
[354566860,1740576656178,-500.0,0.00040272,14]
[354566861,1740576656188,-1662.17,0.00040272,14]
[354566862,1740576656197,-548.46,0.00040272,14]
[354566863,1740576656207,-500.0,0.00040272,14]
[354566864,1740576656216,-2405.19,0.00040272,14]
[354566865,1740576656226,-599.96,0.00040272,14]
[354566866,1740576656236,-1919.29,0.00040272,14]
[354566867,1740576656246,-509.79,0.00040272,14]
[354566868,1740576656255,-500.0,0.00040272,14]
[354566869,1740576656265,-1667.64,0.00040272,14]
[354566870,1740576656275,-974.92,0.00040272,14]
[354566871,1740576656284,-647.71,0.00040272,14]
[354566872,1740576656294,-592.89,0.00040272,14]
[354566873,1740576656304,-500.0,0.00040272,14]
[354566874,1740576656313,-1880.42,0.00040272,14]
[354566875,1740576656325,-634.19,0.00040272,14]
[354566876,1740576656335,-500.0,0.00040272,14]
[354566877,1740576656345,-500.0,0.00040272,14]
[354566878,1740576656357,-500.0,0.00040272,14]
[354566879,1740576656366,-1328.22,0.00040272,14]